Workbook

Sheet Sheet1
C3: 编号 | D3: 等级 | E3: 升级经验 | F3: 生命增加 | G3: 防御增加 | H3: 攻击增加
C4: Id | D4: Level | E4: Exp | F4: HPUp | G4: DEFUp | H4: ATKUp
C5: int | D5: int | E5: int | F5: int | G5: int | H5: int
C6: 1 | D6: 1 | E6: =D6*1000 -> 1000 | F6: =100+D6*20 -> 120 | G6: =5+D6*8 -> 13 | H6: =D6*2 -> 2
C7: 2 | D7: 2 | E7: =D7*1000 -> 2000 | F7: =100+D7*20 -> 140 | G7: =5+D7*8 -> 21 | H7: =D7*2 -> 4
C8: 3 | D8: 3 | E8: 3000 | F8: 160 | G8: 29 | H8: 6
C9: 4 | D9: 4 | E9: 4000 | F9: 180 | G9: 37 | H9: 8
C10: 5 | D10: 5 | E10: 5000 | F10: 200 | G10: 45 | H10: 10
C11: 6 | D11: 6 | E11: 6000 | F11: 220 | G11: 53 | H11: 12
C12: 7 | D12: 7 | E12: 7000 | F12: 240 | G12: 61 | H12: 14
C13: 8 | D13: 8 | E13: 8000 | F13: 260 | G13: 69 | H13: 16
C14: 9 | D14: 9 | E14: 9000 | F14: 280 | G14: 77 | H14: 18
C15: 10 | D15: 10 | E15: 10000 | F15: 300 | G15: 85 | H15: 20
C16: 11 | D16: 11 | E16: 11000 | F16: 320 | G16: 93 | H16: 22
C17: 12 | D17: 12 | E17: 12000 | F17: 340 | G17: 101 | H17: 24
C18: 13 | D18: 13 | E18: 13000 | F18: 360 | G18: 109 | H18: 26
C19: 14 | D19: 14 | E19: 14000 | F19: 380 | G19: 117 | H19: 28
C20: 15 | D20: 15 | E20: 15000 | F20: 400 | G20: 125 | H20: 30
C21: 16 | D21: 16 | E21: 16000 | F21: 420 | G21: 133 | H21: 32
C22: 17 | D22: 17 | E22: 17000 | F22: 440 | G22: 141 | H22: 34
C23: 18 | D23: 18 | E23: 18000 | F23: 460 | G23: 149 | H23: 36
C24: 19 | D24: 19 | E24: 19000 | F24: 480 | G24: 157 | H24: 38
C25: 20 | D25: 20 | E25: 20000 | F25: 500 | G25: 165 | H25: 40
C26: 21 | D26: 21 | E26: 21000 | F26: 520 | G26: 173 | H26: 42
C27: 22 | D27: 22 | E27: 22000 | F27: 540 | G27: 181 | H27: 44
C28: 23 | D28: 23 | E28: 23000 | F28: 560 | G28: 189 | H28: 46
C29: 24 | D29: 24 | E29: 24000 | F29: 580 | G29: 197 | H29: 48
C30: 25 | D30: 25 | E30: 25000 | F30: 600 | G30: 205 | H30: 50
C31: 26 | D31: 26 | E31: 26000 | F31: 620 | G31: 213 | H31: 52
C32: 27 | D32: 27 | E32: 27000 | F32: 640 | G32: 221 | H32: 54
C33: 28 | D33: 28 | E33: 28000 | F33: 660 | G33: 229 | H33: 56
C34: 29 | D34: 29 | E34: 29000 | F34: 680 | G34: 237 | H34: 58
C35: 30 | D35: 30 | E35: 30000 | F35: 700 | G35: 245 | H35: 60
C36: 31 | D36: 31 | E36: 31000 | F36: 720 | G36: 253 | H36: 62
C37: 32 | D37: 32 | E37: 32000 | F37: 740 | G37: 261 | H37: 64
C38: 33 | D38: 33 | E38: 33000 | F38: 760 | G38: 269 | H38: 66
C39: 34 | D39: 34 | E39: =D39*1000 -> 34000 | F39: =100+D39*20 -> 780 | G39: =5+D39*8 -> 277 | H39: =D39*2 -> 68
C40: 35 | D40: 35 | E40: 35000 | F40: 800 | G40: 285 | H40: 70
C41: 36 | D41: 36 | E41: 36000 | F41: 820 | G41: 293 | H41: 72
C42: 37 | D42: 37 | E42: 37000 | F42: 840 | G42: 301 | H42: 74
C43: 38 | D43: 38 | E43: 38000 | F43: 860 | G43: 309 | H43: 76
C44: 39 | D44: 39 | E44: 39000 | F44: 880 | G44: 317 | H44: 78
C45: 40 | D45: 40 | E45: 40000 | F45: 900 | G45: 325 | H45: 80
C46: 41 | D46: 41 | E46: 41000 | F46: 920 | G46: 333 | H46: 82
C47: 42 | D47: 42 | E47: 42000 | F47: 940 | G47: 341 | H47: 84
C48: 43 | D48: 43 | E48: 43000 | F48: 960 | G48: 349 | H48: 86
C49: 44 | D49: 44 | E49: 44000 | F49: 980 | G49: 357 | H49: 88
C50: 45 | D50: 45 | E50: 45000 | F50: 1000 | G50: 365 | H50: 90
C51: 46 | D51: 46 | E51: 46000 | F51: 1020 | G51: 373 | H51: 92
C52: 47 | D52: 47 | E52: 47000 | F52: 1040 | G52: 381 | H52: 94
C53: 48 | D53: 48 | E53: 48000 | F53: 1060 | G53: 389 | H53: 96
C54: 49 | D54: 49 | E54: 49000 | F54: 1080 | G54: 397 | H54: 98
C55: 50 | D55: 50 | E55: 50000 | F55: 1100 | G55: 405 | H55: 100
C56: 51 | D56: 51 | E56: 51000 | F56: 1120 | G56: 413 | H56: 102
C57: 52 | D57: 52 | E57: 52000 | F57: 1140 | G57: 421 | H57: 104
C58: 53 | D58: 53 | E58: 53000 | F58: 1160 | G58: 429 | H58: 106
C59: 54 | D59: 54 | E59: 54000 | F59: 1180 | G59: 437 | H59: 108
C60: 55 | D60: 55 | E60: 55000 | F60: 1200 | G60: 445 | H60: 110
C61: 56 | D61: 56 | E61: 56000 | F61: 1220 | G61: 453 | H61: 112
C62: 57 | D62: 57 | E62: 57000 | F62: 1240 | G62: 461 | H62: 114
C63: 58 | D63: 58 | E63: 58000 | F63: 1260 | G63: 469 | H63: 116
C64: 59 | D64: 59 | E64: 59000 | F64: 1280 | G64: 477 | H64: 118
C65: 60 | D65: 60 | E65: 60000 | F65: 1300 | G65: 485 | H65: 120
C66: 61 | D66: 61 | E66: 61000 | F66: 1320 | G66: 493 | H66: 122
C67: 62 | D67: 62 | E67: 62000 | F67: 1340 | G67: 501 | H67: 124
C68: 63 | D68: 63 | E68: 63000 | F68: 1360 | G68: 509 | H68: 126
C69: 64 | D69: 64 | E69: 64000 | F69: 1380 | G69: 517 | H69: 128
C70: 65 | D70: 65 | E70: 65000 | F70: 1400 | G70: 525 | H70: 130
C71: 66 | D71: 66 | E71: =D71*1000 -> 66000 | F71: =100+D71*20 -> 1420 | G71: =5+D71*8 -> 533 | H71: =D71*2 -> 132
C72: 67 | D72: 67 | E72: 67000 | F72: 1440 | G72: 541 | H72: 134
C73: 68 | D73: 68 | E73: 68000 | F73: 1460 | G73: 549 | H73: 136
C74: 69 | D74: 69 | E74: 69000 | F74: 1480 | G74: 557 | H74: 138
C75: 70 | D75: 70 | E75: 70000 | F75: 1500 | G75: 565 | H75: 140
C76: 71 | D76: 71 | E76: 71000 | F76: 1520 | G76: 573 | H76: 142
C77: 72 | D77: 72 | E77: 72000 | F77: 1540 | G77: 581 | H77: 144
C78: 73 | D78: 73 | E78: 73000 | F78: 1560 | G78: 589 | H78: 146
C79: 74 | D79: 74 | E79: 74000 | F79: 1580 | G79: 597 | H79: 148
C80: 75 | D80: 75 | E80: 75000 | F80: 1600 | G80: 605 | H80: 150
C81: 76 | D81: 76 | E81: 76000 | F81: 1620 | G81: 613 | H81: 152
C82: 77 | D82: 77 | E82: 77000 | F82: 1640 | G82: 621 | H82: 154
C83: 78 | D83: 78 | E83: 78000 | F83: 1660 | G83: 629 | H83: 156
C84: 79 | D84: 79 | E84: 79000 | F84: 1680 | G84: 637 | H84: 158
C85: 80 | D85: 80 | E85: 80000 | F85: 1700 | G85: 645 | H85: 160
C86: 81 | D86: 81 | E86: 81000 | F86: 1720 | G86: 653 | H86: 162
C87: 82 | D87: 82 | E87: 82000 | F87: 1740 | G87: 661 | H87: 164
C88: 83 | D88: 83 | E88: 83000 | F88: 1760 | G88: 669 | H88: 166
C89: 84 | D89: 84 | E89: 84000 | F89: 1780 | G89: 677 | H89: 168
C90: 85 | D90: 85 | E90: 85000 | F90: 1800 | G90: 685 | H90: 170
C91: 86 | D91: 86 | E91: 86000 | F91: 1820 | G91: 693 | H91: 172
C92: 87 | D92: 87 | E92: 87000 | F92: 1840 | G92: 701 | H92: 174
C93: 88 | D93: 88 | E93: 88000 | F93: 1860 | G93: 709 | H93: 176
C94: 89 | D94: 89 | E94: 89000 | F94: 1880 | G94: 717 | H94: 178
C95: 90 | D95: 90 | E95: 90000 | F95: 1900 | G95: 725 | H95: 180

Sheet Sheet2

Sheet Sheet3
